bitfinex-derivatives/quotes_BNBF0:USTF0_20250510
["timestamp","ask_amount","ask_price","bid_price","bid_amount"]
[1746859024203,0.24606729,663.06,662.01,0.30200476]
[1746859024708,0.24606729,663.06,662.02,0.30200476]
[1746859024910,0.24606729,663.18,662.02,0.30200476]
[1746859025408,0.3015727,663.19,662.02,0.30200476]
[1746859025609,0.26269207,663.17,661.99,0.65911936]
[1746859026109,0.24608114,663.16,662.0,0.30207653]
[1746859026509,0.24608114,663.16,662.01,0.30207653]
[1746859027210,0.24608114,663.16,662.02,0.30207653]
[1746859027509,0.26269207,663.15,662.02,0.30207653]
[1746859027908,0.24608114,663.14,662.03,0.30207653]
[1746859028605,0.24608114,663.14,662.04,0.30207653]
[1746859029309,0.24608114,663.14,661.99,0.30211936]
[1746859029503,0.24608114,663.14,662.05,0.27]
[1746859030507,0.26272181,663.13,662.05,0.27]
[1746859030926,0.24608114,663.12,662.05,0.27]
[1746859033513,0.24608114,663.11,662.05,0.27]
[1746859033711,0.50880295,663.11,662.05,0.27]
[1746859034015,0.24608114,663.1,662.05,0.27]
[1746859034614,0.24608114,663.09,662.05,0.27]
[1746859034916,0.24608114,663.08,662.05,0.27]
[1746859035110,0.24608114,663.07,662.05,0.27]
[1746859035415,0.24608114,663.06,662.05,0.27]
[1746859036617,0.26273371,663.05,662.05,0.27]
[1746859037018,0.50881485,663.05,662.05,0.27]
[1746859037318,0.24608114,663.04,662.05,0.27]
[1746859037716,0.24608114,663.03,662.05,0.27]
[1746859038017,0.24608114,663.02,662.05,0.27]
[1746859038312,0.24608114,663.01,662.05,0.27]
[1746859038717,0.24608114,663.0,662.05,0.27]
[1746859039112,0.24608114,662.99,662.05,0.27]
[1746859039819,0.24608114,663.04,662.05,0.27]
[1746859040119,0.24608114,663.18,662.05,0.27]
[1746859040518,0.24608114,663.17,662.05,0.27]
[1746859040715,0.50884263,663.17,662.05,0.27]
[1746859040913,0.24608114,663.16,662.05,0.27]
[1746859041318,0.24608114,663.15,662.05,0.27]
[1746859041613,0.24608114,663.14,662.05,0.27]
[1746859041917,0.24608114,663.13,662.05,0.27]
[1746859042312,0.24608114,663.12,662.05,0.27]
[1746859042920,0.24608114,663.11,662.05,0.27]
[1746859043318,0.24608114,663.1,662.05,0.27]
[1746859043722,0.24608114,663.09,662.05,0.27]
[1746859044119,0.24608114,663.08,662.05,0.27]
[1746859044418,0.24608114,663.07,662.05,0.27]
[1746859044822,0.24608114,663.06,662.05,0.27]
[1746859045321,0.24608114,663.05,662.05,0.27]
[1746859046021,0.24608114,663.04,662.05,0.27]
[1746859046420,0.24608114,663.03,662.05,0.27]
[1746859046823,0.24608114,663.02,662.05,0.27]
[1746859047016,0.24608114,663.01,662.05,0.27]
[1746859047322,0.24608114,663.0,662.05,0.27]
[1746859047719,0.24608114,662.99,662.05,0.27]
[1746859048021,0.24608114,662.98,662.05,0.27]
[1746859048516,0.24608114,662.97,662.05,0.27]
[1746859049018,0.24608114,662.96,662.05,0.27]
[1746859049422,0.24608114,662.95,662.05,0.27]
[1746859049822,0.24608114,662.94,662.05,0.27]
[1746859050222,0.24608114,662.93,662.05,0.27]
[1746859050816,0.50890216,662.92,662.05,0.27]
[1746859051422,0.24608114,662.91,662.05,0.27]
[1746859051620,0.24608114,662.9,662.05,0.27]
[1746859051922,0.24608114,662.89,662.05,0.27]
[1746859052218,0.24608114,662.91,662.05,0.27]
[1746859053219,0.26282102,662.92,662.05,0.27]
[1746859053624,0.24627739,662.91,662.05,0.27]
[1746859054320,0.2627853,662.9,662.05,0.27]
[1746859055425,0.24627739,662.89,662.05,0.27]
[1746859055922,0.24627739,662.88,662.05,0.27]
[1746859056527,0.24627739,662.87,662.05,0.27]
[1746859056827,0.24627739,662.89,662.05,0.27]
[1746859057526,0.26277934,662.88,662.05,0.27]
[1746859057729,0.24627739,662.87,662.05,0.27]
[1746859060524,0.3015727,663.19,662.05,0.27]
[1746859060525,0.24627739,663.18,662.05,0.27]
[1746859060729,0.24627739,663.17,662.05,0.27]
[1746859060930,0.24627739,663.16,662.05,0.27]
[1746859061147,0.3015727,663.19,662.05,0.27]
[1746859061331,0.26275554,663.16,662.05,0.27]
[1746859061630,0.2461813,663.15,662.05,0.27]
[1746859061826,0.2461813,663.14,662.05,0.27]
[1746859063426,0.2461813,663.13,662.05,0.27]
[1746859063930,0.2461813,663.12,662.05,0.27]
[1746859064330,0.2461813,663.15,662.05,0.27]
[1746859064631,0.2461813,663.14,662.05,0.27]
[1746859065032,0.2461813,663.13,662.05,0.27]
[1746859065329,0.2461813,663.12,662.05,0.27]
[1746859065633,0.2461813,663.11,662.05,0.27]
[1746859066134,0.2461813,663.1,662.05,0.27]
[1746859066935,0.2461813,663.09,662.05,0.27]
[1746859067331,0.2461813,663.08,662.05,0.27]
[1746859067637,0.2461813,663.07,662.05,0.27]
[1746859068137,0.2461813,663.06,662.05,0.27]
[1746859068537,0.2461813,663.05,662.05,0.27]
[1746859068937,0.2461813,663.04,662.05,0.27]
[1746859069535,0.26278133,663.03,662.05,0.27]
[1746859069735,0.50896263,663.03,662.05,0.27]
[1746859069941,0.2461813,663.02,662.05,0.27]
[1746859070334,0.2461813,663.01,662.05,0.27]
[1746859070639,0.2461813,663.0,662.05,0.27]
[1746859071039,0.2461813,662.99,662.05,0.27]
[1746859071238,0.2461813,662.98,662.05,0.27]
[1746859071541,0.2461813,662.97,661.99,0.30211936]
[1746859071835,0.2461813,662.96,661.99,0.30211936]
[1746859072339,0.2461813,662.95,661.99,0.30211936]
[1746859072741,0.2461813,662.94,661.99,0.30211936]
[1746859073044,0.2461813,662.93,661.99,0.30211936]
[1746859073440,0.2461813,662.92,661.99,0.30211936]
[1746859073840,0.2461813,662.91,661.99,0.30211936]
[1746859074140,0.2461813,662.9,661.99,0.30211936]
[1746859074335,0.2461813,662.89,661.99,0.30211936]
[1746859074841,0.2461813,663.02,661.99,0.30211936]
[1746859075141,0.3015727,663.19,661.99,0.30211936]
[1746859075142,0.2461813,663.01,662.0,0.365]
[1746859075436,0.2461813,663.0,662.0,0.365]
[1746859075641,0.50895072,663.0,662.0,0.365]
[1746859075937,0.2461813,662.99,662.0,0.365]
[1746859076340,0.26276942,663.0,662.0,0.365]
[1746859076643,0.24623993,662.99,662.0,0.365]
[1746859076940,0.24623993,662.98,662.0,0.365]
[1746859077338,0.24623993,662.97,662.0,0.365]
[1746859077840,0.24623993,662.96,662.0,0.365]
[1746859078141,0.24623993,662.95,662.0,0.365]
[1746859078341,0.24623993,662.94,662.0,0.365]
[1746859078641,0.24623993,662.93,662.0,0.365]
[1746859079043,0.24623993,662.92,662.0,0.365]
[1746859079342,0.24623993,662.91,662.0,0.365]
[1746859079744,0.24623993,662.9,662.0,0.365]
[1746859080544,0.24623993,662.89,662.0,0.365]
[1746859080944,0.24623993,662.88,662.0,0.365]
[1746859081245,0.24623993,662.87,662.0,0.365]
[1746859081446,0.50900638,662.87,662.0,0.365]
[1746859081746,0.26276645,662.87,662.0,0.365]
[1746859081947,0.24623993,662.86,662.0,0.365]
[1746859082447,0.26276645,662.87,662.0,0.365]
[1746859083248,0.24621398,662.86,662.0,0.365]
[1746859084446,0.26272975,662.85,662.0,0.365]
[1746859084747,0.24621398,662.84,662.0,0.365]
[1746859087749,0.26272975,662.83,662.0,0.365]
[1746859087952,0.24621398,662.82,662.0,0.365]
[1746859088749,0.24621398,662.81,662.0,0.365]
[1746859089451,0.24621398,662.8,662.0,0.365]
[1746859089753,0.24621398,662.79,662.0,0.365]
[1746859090147,0.24621398,662.78,662.0,0.365]
[1746859090353,1.96279585,663.23,662.0,0.365]
[1746859090646,0.24634712,663.22,662.0,0.365]
[1746859090851,0.50933399,663.22,662.0,0.365]
[1746859091051,0.24634712,663.21,662.0,0.365]
[1746859091371,0.24634712,663.2,662.0,0.365]
[1746859091655,0.24634712,663.19,662.01,0.28]
[1746859091956,0.24634712,663.18,662.01,0.28]
[1746859092254,0.24634712,663.17,662.01,0.28]
[1746859092549,1.96279585,663.08,662.01,0.28]
[1746859092853,0.24634712,663.07,662.01,0.28]
[1746859093253,0.24634712,663.06,662.01,0.28]
[1746859093654,0.24634712,663.05,662.01,0.28]
[1746859093954,0.50918799,663.05,662.01,0.28]
[1746859094155,0.24634712,663.04,662.01,0.28]
[1746859094556,0.24634712,663.03,662.01,0.28]
[1746859094750,0.24634712,663.04,662.01,0.28]
[1746859096459,0.26301569,663.03,662.01,0.28]
[1746859096959,0.24634712,663.02,662.01,0.28]
[1746859097156,0.26301569,663.03,662.01,0.28]
[1746859097458,0.24635403,663.02,662.01,0.28]
[1746859097656,0.26301569,663.03,662.01,0.28]
[1746859097962,0.24635325,663.02,662.01,0.28]
[1746859098459,0.30165912,663.0,662.01,0.28]
[1746859098962,0.24635325,662.99,662.01,0.28]
[1746859099856,0.26284981,662.98,662.01,0.28]
[1746859100063,0.50920306,662.98,662.01,0.28]
[1746859100262,0.24635325,662.97,662.01,0.28]
[1746859100664,0.24635325,662.96,662.01,0.28]
[1746859100957,0.24635325,662.95,662.01,0.28]
[1746859101158,0.24635325,662.94,662.01,0.28]
[1746859101566,0.24635325,662.93,662.01,0.28]
[1746859101863,0.24635325,662.92,662.01,0.28]
[1746859102266,0.24635325,662.91,662.01,0.28]
[1746859102664,0.50920306,662.9,662.01,0.28]
[1746859102967,0.54806243,662.89,662.01,0.28]
[1746859103261,0.24635325,662.88,662.01,0.28]
[1746859103866,0.24635325,662.87,662.01,0.28]
[1746859104666,0.24635325,662.86,662.01,0.28]
[1746859104866,0.30173194,662.84,662.01,0.28]
[1746859105465,0.50918627,662.83,662.01,0.28]
[1746859105971,0.24632257,662.82,662.01,0.28]
[1746859106166,0.30175015,662.8,662.01,0.28]
[1746859106663,0.24632257,662.79,662.01,0.28]
[1746859107270,0.24632257,662.78,662.01,0.28]
[1746859107466,0.24632257,662.77,662.01,0.28]
[1746859107769,0.24632257,662.76,662.01,0.28]
[1746859108070,0.24632257,662.79,662.01,0.28]
[1746859108464,0.24632257,662.78,662.01,0.28]
[1746859108668,0.3017638,662.77,662.01,0.28]
[1746859108866,0.54808637,662.77,662.01,0.28]
[1746859109268,0.24632257,662.76,662.01,0.28]
[1746859109469,0.30177291,662.75,662.01,0.28]
[1746859110470,0.24632257,662.74,662.01,0.28]
[1746859111467,0.26283293,662.73,662.01,0.28]
[1746859111873,0.24632257,662.72,662.01,0.28]
[1746859112773,0.30179113,662.71,662.01,0.28]
[1746859113176,0.24632257,662.7,662.01,0.28]
[1746859114470,0.2628369,662.69,662.01,0.28]
[1746859114869,0.24632257,662.68,660.87,0.2628369]
[1746859115073,0.24632257,662.68,660.88,1.19789299]
[1746859115274,0.24632257,662.68,660.89,0.89563859]
[1746859115475,0.24632257,662.68,660.9,0.89563859]
[1746859115677,0.24632257,662.68,660.91,0.89563859]
[1746859115871,0.24632257,662.68,660.92,1.19789299]
[1746859116071,0.24632257,662.68,660.93,0.89563859]
[1746859116271,0.24632257,662.68,660.94,1.47559027]
[1746859116576,0.24632257,662.68,660.95,1.47559027]
[1746859116876,0.24632257,662.68,660.96,1.19789299]
[1746859117077,0.24632257,662.68,660.97,0.89563859]
[1746859117270,0.24632257,662.68,660.98,1.19789299]
[1746859117474,0.24632257,662.7,660.99,0.89563859]
[1746859117671,0.26294514,662.67,661.0,1.19789299]
[1746859117873,0.26294514,662.67,661.01,1.19789299]
[1746859118074,0.26294514,662.67,661.02,0.89563859]
[1746859118270,0.26294514,662.67,661.03,1.19789299]
[1746859118271,0.24632257,662.66,661.03,1.19789299]
[1746859118577,0.24632257,662.66,661.04,1.19789299]
[1746859118875,0.24632257,662.66,661.05,1.47489299]
[1746859119079,0.24632257,662.66,661.06,0.896356]
[1746859119277,0.24632257,662.66,661.07,0.896356]
[1746859119471,0.24632257,662.66,661.08,0.896356]
[1746859119682,0.24632257,662.66,661.09,0.896356]
[1746859119976,0.24632257,662.66,661.1,1.1986104]
[1746859120271,0.24632257,662.65,661.11,1.19887751]
[1746859120475,0.24632257,662.65,661.12,0.896356]
[1746859120669,0.50925479,662.64,661.13,0.896356]
[1746859120870,0.24632257,662.63,661.14,0.896356]
[1746859121071,0.24632257,662.63,661.15,0.896356]
[1746859121274,0.24632257,662.63,661.16,1.1986104]
[1746859121470,0.24632257,662.63,661.17,0.896356]
[1746859121671,0.24632257,662.63,661.18,0.896356]
[1746859121874,0.24632257,662.63,661.19,1.1986104]
[1746859122175,0.24632257,662.63,661.2,0.896356]
[1746859122375,0.24632257,662.63,661.21,0.896356]
[1746859122570,0.24632257,662.63,661.22,1.1986104]
[1746859122876,0.24632257,662.63,661.23,0.896356]
[1746859123077,0.24632257,662.63,661.24,0.896356]
[1746859123276,0.24632257,662.7,661.25,0.896356]
[1746859123470,0.26293123,662.62,661.26,1.1986104]
[1746859123774,0.26293123,662.62,661.27,0.896356]
[1746859123972,0.24632257,662.61,661.28,0.896356]
[1746859124176,0.24632257,662.61,661.29,0.896356]
[1746859124477,0.24632257,662.61,661.3,0.3022544]
[1746859125276,0.24632257,662.61,661.31,0.3022544]
[1746859125678,0.26293123,662.62,661.31,0.3022544]
[1746859125877,0.26293123,662.62,661.32,0.3022544]
[1746859126179,0.24631964,662.61,661.32,0.3022544]
[1746859126577,0.26294414,662.6,661.33,0.3022544]
[1746859126979,0.26294414,662.6,661.34,0.3022544]
[1746859127181,0.24631964,662.59,661.34,0.3022544]
[1746859127778,0.24631964,662.59,661.12,0.3022544]
[1746859127982,0.24631964,662.59,661.13,1.19919764]
[1746859128276,0.24631964,662.59,661.14,1.19919764]
[1746859128481,0.24631964,662.59,661.15,0.89694324]
[1746859128675,0.24631964,662.59,661.16,0.89694324]
[1746859128877,0.24631964,662.59,661.17,1.19919764]
[1746859129075,0.24631964,662.59,661.18,0.89694324]
[1746859129275,0.24631964,662.59,661.17,0.3022544]
[1746859129276,0.24631964,662.59,661.19,0.89694324]
[1746859129475,0.24631964,662.59,661.2,0.89694324]
[1746859129679,0.24631964,662.7,661.21,1.19919764]
[1746859129979,0.24631964,662.69,661.22,0.89694324]
[1746859130174,0.24631964,662.69,661.23,0.89694324]
[1746859130375,0.24631964,662.68,661.23,0.3022544]
[1746859130679,0.24631964,662.67,661.23,0.3022544]
[1746859130879,0.50928763,662.67,661.24,0.3022544]
[1746859131080,0.24631964,662.66,661.25,0.3022544]
[1746859131380,0.24631964,662.65,661.25,0.3022544]
[1746859131779,0.24631964,662.64,661.25,0.3022544]
[1746859132081,0.24631964,662.66,661.26,0.3022544]
[1746859132480,0.50928763,662.65,661.27,0.3022544]
[1746859132677,0.24631964,662.64,661.27,0.3022544]
[1746859132980,0.24631964,662.64,661.28,0.3022544]
[1746859133282,0.24631964,662.64,661.29,0.3022544]
[1746859133584,0.24631964,662.64,661.3,0.3022544]
[1746859134184,0.24631964,662.64,661.31,0.3022544]
[1746859134387,0.24631964,662.64,661.32,0.3022544]
[1746859135086,0.24631964,662.64,661.33,0.6082544]
[1746859135285,0.24631964,662.7,661.33,0.6082544]
[1746859135487,0.26291435,662.63,661.34,1.19850264]
[1746859135686,0.24631964,662.62,661.35,0.89624824]
[1746859135889,0.24631964,662.62,661.34,0.3022544]
[1746859136187,0.24631964,662.62,661.35,1.19846994]
[1746859136393,0.24631964,662.62,661.36,0.89619563]
[1746859136592,0.30183667,662.61,661.35,0.3022544]
[1746859136786,0.30183667,662.61,661.36,1.19849042]
[1746859136986,0.24631964,662.6,661.36,0.3022544]
[1746859137290,0.24631964,662.6,661.37,0.89642854]
[1746859137491,0.24631964,662.6,661.38,0.3022544]
[1746859137991,0.24631964,662.6,661.39,0.3022544]
[1746859138388,0.24631964,662.6,661.4,0.3022544]
[1746859138695,0.26292428,662.59,661.4,0.3022544]
[1746859139494,0.24631964,662.58,661.41,0.3022544]
[1746859139693,0.30185489,662.57,661.41,0.3022544]
[1746859139993,0.30185489,662.57,661.42,0.6632544]
[1746859140292,0.24631964,662.56,661.42,0.6632544]
[1746859140491,0.30186401,662.55,661.42,0.361]
[1746859140793,0.24631964,662.54,661.42,0.361]
[1746859141489,0.2629501,662.53,661.42,0.361]
[1746859141695,0.50926974,662.53,661.42,0.361]
[1746859141988,0.24631964,662.52,661.42,0.361]
[1746859142494,0.24631964,662.51,661.42,0.361]
[1746859142894,0.2629501,662.53,661.42,0.361]
[1746859142895,0.24631964,662.5,661.42,0.361]
[1746859143292,0.24631964,662.49,661.42,0.361]
[1746859143696,0.24631964,662.48,661.42,0.361]
[1746859144096,0.24631964,662.47,661.42,0.361]
[1746859144395,0.24631964,662.46,661.42,0.361]
[1746859144594,0.24631964,662.45,661.42,0.361]
[1746859145095,0.24631964,662.44,661.42,0.361]
[1746859145496,0.54823833,662.43,661.42,0.361]
[1746859145688,0.30192325,662.42,661.42,0.361]
[1746859145991,0.54824289,662.42,661.42,0.361]
[1746859146198,0.24631964,662.41,661.42,0.361]
[1746859147493,0.2630127,662.4,661.42,0.361]
[1746859147899,0.24631964,662.39,661.42,0.361]
[1746859149099,0.24631964,662.39,661.43,0.428]
[1746859149704,0.2630127,662.4,661.43,0.428]
[1746859150102,0.24642794,662.39,661.43,0.428]
[1746859152903,0.24642794,662.38,661.43,0.428]
[1746859153298,0.24642794,662.37,661.43,0.428]
[1746859153605,0.24642794,662.39,661.43,0.428]
[1746859154404,0.24642794,662.38,661.43,0.428]
[1746859154800,0.24642794,662.39,661.43,0.428]
[1746859156304,0.26302563,662.38,661.43,0.428]
[1746859156510,0.24642794,662.37,661.43,0.428]
[1746859158210,0.30195515,662.35,661.43,0.428]
[1746859158711,0.24642794,662.34,661.43,0.428]
[1746859159612,0.26303258,662.33,661.43,0.428]
[1746859160211,0.24642794,662.32,661.43,0.428]
[1746859160613,0.30197339,662.31,661.43,0.428]
[1746859160914,0.24642794,662.3,661.43,0.428]
[1746859161118,0.30198251,662.29,661.43,0.428]
[1746859161814,0.24642794,662.28,661.43,0.428]
[1746859162515,0.26303855,662.27,661.43,0.428]
[1746859162915,0.24642794,662.26,661.43,0.428]
[1746859165510,0.24642794,662.28,661.43,0.428]
[1746859165710,0.26303855,662.25,661.43,0.428]
[1746859166010,0.24642794,662.24,661.43,0.428]
[1746859168418,0.24642794,662.23,661.43,0.428]
[1746859168611,0.24642794,662.22,661.43,0.428]
[1746859168815,0.50946649,662.22,661.43,0.428]
[1746859169012,0.26303855,662.22,661.43,0.428]
[1746859169413,0.24647994,662.21,661.43,0.428]
[1746859169619,0.30202355,662.2,661.43,0.428]
[1746859170120,0.24647994,662.19,661.43,0.428]
[1746859170315,0.30203267,662.18,661.43,0.428]
[1746859171519,0.24647542,662.17,661.43,0.428]
[1746859171718,0.3020418,662.16,661.43,0.428]
[1746859173223,0.24647542,662.15,661.43,0.428]
[1746859174324,0.54852178,662.15,661.43,0.428]
[1746859174727,0.24647542,662.14,661.43,0.428]
[1746859175019,0.50952789,662.14,661.43,0.428]
[1746859175523,0.24647542,662.13,661.43,0.428]
[1746859177627,0.24647542,662.14,661.43,0.428]
[1746859177927,0.26305247,662.12,661.43,0.428]
[1746859178427,0.24647542,662.11,661.43,0.428]
[1746859180529,0.26305247,662.1,661.43,0.428]
[1746859180830,0.24647542,662.09,661.43,0.428]
[1746859182732,0.26305247,662.1,661.43,0.428]
[1746859183032,0.24646446,662.09,661.43,0.428]
[1746859183531,0.26304451,662.08,661.43,0.428]
[1746859183825,0.24646446,662.07,661.43,0.428]
[1746859186530,0.24646446,662.14,661.43,0.428]
[1746859186728,0.26304253,662.06,661.43,0.428]
[1746859187235,0.24646446,662.05,661.43,0.428]
[1746859189537,0.26303258,662.04,661.43,0.428]
[1746859189934,0.24646446,662.03,661.43,0.428]
[1746859192734,0.26303258,662.02,661.43,0.428]
[1746859193138,0.24646446,662.01,661.43,0.428]
[1746859195539,0.30204636,662.15,661.43,0.428]
[1746859195738,0.24644505,662.14,661.43,0.428]
[1746859195938,0.26303258,662.0,661.43,0.428]
[1746859196941,0.24644505,661.99,661.43,0.428]
[1746859198442,0.24644505,662.14,661.43,0.428]
[1746859198943,0.26303258,662.13,661.43,0.428]
[1746859199843,0.24644505,662.12,661.43,0.428]
[1746859201646,0.24644505,662.14,661.43,0.428]
[1746859202048,0.26314297,662.13,661.43,0.428]
[1746859202950,0.24644505,662.12,661.43,0.701]
[1746859204851,0.26303159,662.11,661.43,0.701]
[1746859205552,0.24644342,662.1,661.43,0.701]
[1746859207554,0.26303159,662.09,661.43,0.701]
[1746859207853,0.24643999,662.08,661.43,0.701]
[1746859210554,0.24643999,662.14,661.43,0.701]
[1746859210749,0.26303159,662.07,661.43,0.701]
[1746859211455,0.24643999,662.06,661.43,0.701]
[1746859213651,0.26303159,662.07,661.43,0.701]
[1746859216252,0.30204636,662.15,661.43,0.701]
[1746859216757,0.50930555,662.14,661.43,0.701]
[1746859217154,0.2464061,662.13,661.43,0.701]
[1746859219659,0.2464061,662.14,661.43,0.701]
[1746859219859,0.26300774,662.12,661.43,0.701]
[1746859220060,0.2464061,662.11,661.43,0.701]
[1746859222561,0.2464061,662.14,661.43,0.701]
[1746859222856,0.26300774,662.1,661.43,0.701]
[1746859223161,0.2464061,662.09,661.43,0.701]
[1746859225463,0.2464061,662.14,661.43,0.701]
[1746859225862,0.26300774,662.13,661.43,0.701]
[1746859226162,0.2464061,662.12,661.43,0.701]
[1746859227760,0.26300774,662.13,661.43,0.701]
[1746859228158,0.24640549,662.12,661.43,0.701]
[1746859228765,0.26300774,662.11,661.43,0.701]
[1746859229167,0.24640549,662.1,661.43,0.701]
[1746859231363,0.24640549,662.14,661.43,0.701]
[1746859231564,0.26300774,662.09,661.43,0.701]
[1746859232270,0.24640549,662.08,661.43,0.701]
[1746859234572,0.26300774,662.07,661.43,0.701]
[1746859237472,0.30204636,662.15,661.43,0.701]
[1746859237667,0.26300177,662.06,661.43,0.701]
[1746859237865,0.30204636,662.15,661.43,0.701]
[1746859238571,0.26294613,662.14,661.43,0.701]
[1746859240375,0.30204636,662.15,661.43,0.701]
[1746859240570,0.26300177,662.13,661.43,0.701]
[1746859241776,0.26300177,662.13,661.44,0.30236723]
[1746859241973,0.24634541,662.12,661.44,0.30236723]
[1746859242375,0.24634541,662.12,661.45,0.30236723]
[1746859242775,0.26300177,662.13,661.46,0.30236723]
[1746859243171,1.96279585,663.13,661.46,0.30236723]
[1746859243373,0.30160908,663.11,660.31,0.95247697]
[1746859243577,0.24634246,663.1,660.45,0.30282383]
[1746859243772,0.24634246,663.1,660.46,0.89869133]
[1746859243977,0.30166367,662.99,660.59,0.30275965]
[1746859244175,0.30166367,662.99,660.6,0.89869133]
[1746859244375,0.24634246,662.98,660.7,0.30270924]
[1746859244575,0.24634246,662.98,660.71,0.89869133]
[1746859244775,0.24634246,662.97,660.73,0.3026955]
[1746859244976,0.30167732,662.96,660.74,1.20105221]
[1746859245278,0.54801978,662.96,660.76,0.30268176]
[1746859245477,0.24634246,662.95,660.77,0.89869133]
[1746859245678,0.24634246,662.95,660.78,1.20105221]
[1746859245878,0.24634246,662.95,660.79,0.89869133]
[1746859246078,0.24634246,662.94,660.8,0.89869133]
[1746859246273,0.24634246,662.94,660.81,1.20105221]
[1746859246478,0.24634246,662.93,660.82,0.89869133]
[1746859246779,0.24634246,662.92,660.83,0.89869133]
[1746859247080,0.24634246,662.91,660.85,0.30264053]
[1746859247274,0.30170463,662.9,660.86,0.89869133]
[1746859247474,0.24634246,662.89,660.88,0.3026268]
[1746859247678,0.30171828,662.87,660.89,1.20105221]
[1746859247878,0.30171828,662.87,660.91,0.30261306]
[1746859248075,0.24634246,662.86,660.92,0.89869133]
[1746859248279,0.24634246,662.86,660.93,0.89869133]
[1746859248477,0.30173194,662.84,660.94,1.50365153]
[1746859248680,0.30173194,662.84,660.96,0.30259017]
[1746859248881,0.24634246,662.83,660.97,0.89869133]
[1746859249183,0.30173194,662.84,660.94,0.30236088]
[1746859249184,0.30174559,662.81,660.98,1.20127234]
[1746859249384,0.30174559,662.81,660.99,1.20126776]
[1746859249577,0.30174559,662.81,661.0,0.89869133]
[1746859249779,0.5093025,662.8,661.01,1.20125861]
[1746859249978,0.5093025,662.8,661.02,0.89869133]
[1746859250283,0.24634246,662.79,661.03,1.50320709]
[1746859250581,0.24634246,662.79,661.04,1.20084164]
[1746859250779,0.3017638,662.77,661.05,0.89828809]
[1746859250981,0.3017638,662.77,661.06,1.20083248]
[1746859251179,0.3017638,662.77,661.07,1.50318879]
[1746859251382,0.24634246,662.76,661.08,0.89828809]
[1746859251578,0.24634246,662.76,661.09,0.89828809]
[1746859251782,0.24634246,662.75,661.1,0.89828809]
[1746859251985,0.24634246,662.75,661.11,1.20064897]
[1746859252184,0.3017638,662.77,661.12,0.89828809]
[1746859252185,0.24634246,662.74,661.12,0.89828809]
[1746859252379,0.24634246,662.74,661.13,0.89828809]
[1746859252685,0.24634246,662.73,661.14,0.89828809]
[1746859252984,0.24634246,662.72,661.15,0.89798894]
[1746859253284,0.24634246,662.72,661.16,0.89798894]
[1746859253478,0.24634246,662.71,661.17,1.20034982]
[1746859253785,0.24634246,662.7,661.18,1.20034982]
[1746859253981,0.24634246,662.7,661.19,0.89798894]
[1746859254184,0.24634246,662.69,661.2,0.89798894]
[1746859254386,0.24634246,662.68,661.21,1.20034982]
[1746859254585,0.24634246,662.68,661.22,0.89798894]
[1746859254786,0.26295209,662.74,661.23,1.20034982]
[1746859254986,0.26295209,662.74,661.24,0.89798894]
[1746859255188,0.24633791,662.73,661.25,0.30236088]
[1746859255386,0.24633791,662.73,661.26,0.89798894]
[1746859255586,0.24633791,662.72,661.26,0.89798894]
[1746859255788,0.24633791,662.72,661.27,0.30236088]
[1746859255980,0.24633791,662.71,661.28,0.89798894]
[1746859256181,0.24633791,662.7,661.28,0.89798894]
[1746859256485,0.24633791,662.7,661.29,1.20056806]
[1746859256786,0.24633791,662.69,661.29,0.30236088]
[1746859256981,0.24633791,662.69,661.3,0.89819863]
[1746859257184,0.24633791,662.68,661.29,0.30236088]
[1746859257386,0.24633791,662.67,661.3,1.20054098]
[1746859257687,0.24633791,662.67,661.3,0.30236088]
[1746859257888,0.24633791,662.66,661.31,0.30236088]
[1746859258087,0.24633791,662.65,661.31,0.30236088]
[1746859258387,0.24633791,662.65,661.07,0.30253982]
[1746859258388,0.24633791,662.65,661.32,0.30236088]
[1746859258589,0.50929397,662.64,661.32,0.30236088]
[1746859258787,0.24633791,662.63,661.32,0.30236088]
[1746859259087,0.24633791,662.63,661.33,0.30236088]
[1746859259289,0.24633791,662.62,661.33,0.30236088]
[1746859259484,0.24633791,662.62,661.34,0.30236088]
[1746859259789,0.24633791,662.61,661.35,0.30236088]